[Event "Titled Tuesday Blitz April 05 Early 2022"]
[White "Coelho, Ramyres Santana"]
[Black "Mikhnenko, Alexander"]
[WhiteFideId "2120690"]
[BlackFideId "34143014"]
[WhiteElo "1888"]
[BlackElo "2117"]
[Result "0-1"]
[Round "03"]
[TimeControl "180+1"]
[Date "2022.04.05"]
[WhiteClock "0:01:11"]
[BlackClock "0:01:42"]

1. e4 {[%clk 0:03:00]}  c5 {[%clk 0:02:59]} 2. Nf3 {[%clk 0:02:59]}  e6 {[%clk 0:02:54]} 3. d4 {[%clk 0:02:59]}  cxd4 {[%clk 0:02:55]} 4. c3 {[%clk 0:03:00]}  dxc3 {[%clk 0:02:54]} 5. Nxc3 {[%clk 0:03:01]}  d5 {[%clk 0:02:55]} 6. exd5 {[%clk 0:03:00]}  exd5 {[%clk 0:02:54]} 7. Qxd5 {[%clk 0:03:00]}  Nc6 {[%clk 0:02:52]} 8. Bb5 {[%clk 0:02:58]}  Bd7 {[%clk 0:02:44]} 9. O-O {[%clk 0:02:57]}  Be7 {[%clk 0:02:42]} 10. Re1 {[%clk 0:02:46]}  Nf6 {[%clk 0:02:38]} 11. Qd6 {[%clk 0:02:18]}  Qb8 {[%clk 0:02:11]} 12. Bf4 {[%clk 0:02:05]}  Qxd6 {[%clk 0:02:01]} 13. Bxd6 {[%clk 0:02:01]}  Be6 {[%clk 0:02:01]} 14. Bxe7 {[%clk 0:01:58]}  Kxe7 {[%clk 0:02:02]} 15. Bxc6 {[%clk 0:01:54]}  bxc6 {[%clk 0:02:02]} 16. Nd4 {[%clk 0:01:54]}  Rac8 {[%clk 0:01:58]} 17. Rad1 {[%clk 0:01:52]}  Rhd8 {[%clk 0:01:54]} 18. Nf5+ {[%clk 0:01:44]}  Kf8 {[%clk 0:01:52]} 19. Nd6 {[%clk 0:01:43]}  Rc7 {[%clk 0:01:50]} 20. Nce4 {[%clk 0:01:37]}  Rcd7 {[%clk 0:01:46]} 21. Nxf6 {[%clk 0:01:24]}  gxf6 {[%clk 0:01:44]} 22. a3 {[%clk 0:01:12]}  Rxd6 {[%clk 0:01:44]} 23. Rxd6 {[%clk 0:01:13]}  Rxd6 {[%clk 0:01:44]} 24. h3 {[%clk 0:01:13]}  Ke7 {[%clk 0:01:43]} 25. Rc1 {[%clk 0:01:12]}  Bd5 {[%clk 0:01:42]} 26. Rc3 {[%clk 0:01:12]}  Re6 {[%clk 0:01:42]} 27. Kh2 {[%clk 0:01:11]}  Re2 {[%clk 0:01:42]} 0-1


[Site "https://www.chess.com"]

[Event "Titled Tuesday Blitz April 05 Early 2022"]
[White "Csonka, Balazs"]
[Black "Silva, Kaua Marques"]
[WhiteFideId "742910"]
[BlackFideId "22701168"]
[WhiteElo "2404"]
[BlackElo "2071"]
[Result "1-0"]
[Round "03"]
[TimeControl "180+1"]
[Date "2022.04.05"]
[WhiteClock "0:02:27"]
[BlackClock "0:02:30"]

1. e4 {[%clk 0:03:00]}  c5 {[%clk 0:02:58]} 2. Nf3 {[%clk 0:02:59]}  Nc6 {[%clk 0:02:59]} 3. Bb5 {[%clk 0:02:59]}  g6 {[%clk 0:02:57]} 4. O-O {[%clk 0:02:57]}  Bg7 {[%clk 0:02:57]} 5. Re1 {[%clk 0:02:57]}  Nf6 {[%clk 0:02:57]} 6. e5 {[%clk 0:02:57]}  Nd5 {[%clk 0:02:57]} 7. Nc3 {[%clk 0:02:57]}  Nc7 {[%clk 0:02:55]} 8. Bxc6 {[%clk 0:02:56]}  dxc6 {[%clk 0:02:56]} 9. Ne4 {[%clk 0:02:56]}  b6 {[%clk 0:02:56]} 10. Nf6+ {[%clk 0:02:50]}  exf6 {[%clk 0:02:52]} 11. exf6+ {[%clk 0:02:51]}  Kf8 {[%clk 0:02:53]} 12. fxg7+ {[%clk 0:02:50]}  Kxg7 {[%clk 0:02:54]} 13. b3 {[%clk 0:02:43]}  Re8 {[%clk 0:02:50]} 14. Bb2+ {[%clk 0:02:39]}  Kg8 {[%clk 0:02:48]} 15. Ne5 {[%clk 0:02:37]}  Ne6 {[%clk 0:02:36]} 16. Ng4 {[%clk 0:02:29]}  Nd4 {[%clk 0:02:30]} 17. Rxe8+ {[%clk 0:02:27]} 1-0


[Site "https://www.chess.com"]

[Event "Titled Tuesday Blitz April 05 Early 2022"]
[White "Dang, Hoang Son"]
[Black "Shubin, Kirill"]
[WhiteFideId "12402435"]
[BlackFideId "34119962"]
[WhiteElo "2252"]
[BlackElo "2522"]
[Result "*"]
[Round "03"]
[TimeControl "180+1"]
[Date "2022.04.05"]
[WhiteClock "0:01:58"]
[BlackClock "0:01:30"]

1. d4 {[%clk 0:03:00]}  e6 {[%clk 0:03:00]} 2. Nf3 {[%clk 0:02:53]}  Nf6 {[%clk 0:02:58]} 3. Bf4 {[%clk 0:02:52]}  b6 {[%clk 0:02:58]} 4. Nbd2 {[%clk 0:02:48]}  Bb7 {[%clk 0:02:58]} 5. h3 {[%clk 0:02:48]}  d6 {[%clk 0:02:58]} 6. e3 {[%clk 0:02:49]}  Nbd7 {[%clk 0:02:59]} 7. Bd3 {[%clk 0:02:46]}  h6 {[%clk 0:02:59]} 8. Qe2 {[%clk 0:02:46]}  g5 {[%clk 0:02:59]} 9. Bg3 {[%clk 0:02:45]}  Rg8 {[%clk 0:02:59]} 10. e4 {[%clk 0:02:44]}  Nh5 {[%clk 0:02:59]} 11. Bh2 {[%clk 0:02:44]}  Nf4 {[%clk 0:02:58]} 12. Qf1 {[%clk 0:02:35]}  Nxd3+ {[%clk 0:02:56]} 13. Qxd3 {[%clk 0:02:36]}  h5 {[%clk 0:02:51]} 14. g4 {[%clk 0:02:30]}  hxg4 {[%clk 0:02:47]} 15. hxg4 {[%clk 0:02:31]}  Qf6 {[%clk 0:02:46]} 16. Bg3 {[%clk 0:02:27]}  O-O-O {[%clk 0:02:45]} 17. O-O-O {[%clk 0:02:27]}  Bg7 {[%clk 0:02:44]} 18. Rh5 {[%clk 0:02:24]}  Rh8 {[%clk 0:02:04]} 19. Rdh1 {[%clk 0:02:12]}  Qg6 {[%clk 0:01:55]} 20. Qe3 {[%clk 0:02:08]}  Nf6 {[%clk 0:01:43]} 21. Rxh8 {[%clk 0:02:04]}  Rxh8 {[%clk 0:01:44]} 22. Rxh8+ {[%clk 0:02:04]}  Bxh8 {[%clk 0:01:45]} 23. Qxg5 {[%clk 0:02:04]}  Nxe4 {[%clk 0:01:36]} 24. Qe7 {[%clk 0:02:04]}  Qg8 {[%clk 0:01:30]} 25. Nxe4 {[%clk 0:01:58]}  Bxe4 {[%clk 0:01:31]} 26. Ng5 {[%clk 0:01:58]}  Bg6 {[%clk 0:01:30]} *


[Site "https://www.chess.com"]

[Event "Titled Tuesday Blitz April 05 Early 2022"]
[White "Delorme, Alban"]
[Black "Fernandez Siles, Luis"]
[WhiteFideId "623636"]
[BlackFideId "2209420"]
[WhiteElo "2197"]
[BlackElo "2212"]
[Result "1-0"]
[Round "03"]
[TimeControl "180+1"]
[Date "2022.04.05"]
[WhiteClock "0:01:29"]
[BlackClock "0:00:20"]

1. e4 {[%clk 0:03:00]}  c5 {[%clk 0:02:58]} 2. Nf3 {[%clk 0:03:00]}  Nc6 {[%clk 0:02:58]} 3. d4 {[%clk 0:03:01]}  cxd4 {[%clk 0:02:59]} 4. Nxd4 {[%clk 0:03:01]}  Nf6 {[%clk 0:02:59]} 5. Nc3 {[%clk 0:03:02]}  e5 {[%clk 0:03:00]} 6. Ndb5 {[%clk 0:03:02]}  d6 {[%clk 0:03:00]} 7. Nd5 {[%clk 0:03:03]}  Nxd5 {[%clk 0:03:00]} 8. exd5 {[%clk 0:03:04]}  Nb8 {[%clk 0:03:01]} 9. a4 {[%clk 0:03:03]}  Be7 {[%clk 0:02:57]} 10. Be2 {[%clk 0:03:03]}  O-O {[%clk 0:02:54]} 11. O-O {[%clk 0:03:03]}  f5 {[%clk 0:02:53]} 12. Be3 {[%clk 0:03:01]}  a6 {[%clk 0:02:48]} 13. Na3 {[%clk 0:03:01]}  f4 {[%clk 0:02:40]} 14. Bd2 {[%clk 0:02:59]}  Bf5 {[%clk 0:02:34]} 15. Nc4 {[%clk 0:02:57]}  Nd7 {[%clk 0:02:24]} 16. a5 {[%clk 0:02:53]}  Rc8 {[%clk 0:02:21]} 17. Bb4 {[%clk 0:02:49]}  Nc5 {[%clk 0:02:15]} 18. Nb6 {[%clk 0:02:47]}  Rc7 {[%clk 0:02:08]} 19. Ba3 {[%clk 0:02:44]}  e4 {[%clk 0:01:35]} 20. f3 {[%clk 0:02:37]}  Bf6 {[%clk 0:01:22]} 21. c4 {[%clk 0:02:29]}  Be5 {[%clk 0:00:54]} 22. Rc1 {[%clk 0:02:26]}  Qf6 {[%clk 0:00:54]} 23. b4 {[%clk 0:02:24]}  Nd3 {[%clk 0:00:51]} 24. fxe4 {[%clk 0:02:16]}  Nxc1 {[%clk 0:00:50]} 25. Bxc1 {[%clk 0:02:09]}  Bd4+ {[%clk 0:00:50]} 26. Kh1 {[%clk 0:02:08]}  Bxe4 {[%clk 0:00:39]} 27. Rxf4 {[%clk 0:02:03]}  Qe5 {[%clk 0:00:23]} 28. Rxf8+ {[%clk 0:01:43]}  Kxf8 {[%clk 0:00:23]} 29. Bg4 {[%clk 0:01:42]}  Bxb6 {[%clk 0:00:22]} 30. axb6 {[%clk 0:01:41]}  Rf7 {[%clk 0:00:23]} 31. c5 {[%clk 0:01:30]}  Qd4 {[%clk 0:00:22]} 32. Qxd4 {[%clk 0:01:28]}  Rf1+ {[%clk 0:00:20]} 33. Qg1 {[%clk 0:01:28]}  Rxg1+ {[%clk 0:00:20]} 34. Kxg1 {[%clk 0:01:29]} 1-0


[Site "https://www.chess.com"]

[Event "Titled Tuesday Blitz April 05 Early 2022"]
[White "Demchenko, Anton"]
[Black "Papasimakopoulos, Alexandros"]
[WhiteFideId "4160258"]
[BlackFideId "4244125"]
[WhiteElo "2539"]
[BlackElo "2340"]
[Result "*"]
[Round "03"]
[TimeControl "180+1"]
[Date "2022.04.05"]
[WhiteClock "0:00:56"]
[BlackClock "0:01:45"]

1. e4 {[%clk 0:03:00]}  e6 {[%clk 0:02:57]} 2. d4 {[%clk 0:03:00]}  d5 {[%clk 0:02:54]} 3. Nd2 {[%clk 0:03:01]}  Nf6 {[%clk 0:02:54]} 4. e5 {[%clk 0:03:00]}  Nfd7 {[%clk 0:02:55]} 5. c3 {[%clk 0:03:00]}  c5 {[%clk 0:02:55]} 6. f4 {[%clk 0:03:00]}  Nc6 {[%clk 0:02:56]} 7. Ndf3 {[%clk 0:03:01]}  cxd4 {[%clk 0:02:57]} 8. cxd4 {[%clk 0:03:01]}  a5 {[%clk 0:02:58]} 9. Bd3 {[%clk 0:02:55]}  a4 {[%clk 0:02:58]} 10. a3 {[%clk 0:02:51]}  Nb6 {[%clk 0:02:57]} 11. Ne2 {[%clk 0:02:50]}  Na5 {[%clk 0:02:54]} 12. O-O {[%clk 0:02:48]}  g6 {[%clk 0:02:55]} 13. Nc3 {[%clk 0:02:41]}  Be7 {[%clk 0:02:16]} 14. Nxa4 {[%clk 0:02:03]}  Nxa4 {[%clk 0:02:03]} 15. Qxa4+ {[%clk 0:02:03]}  Bd7 {[%clk 0:02:02]} 16. Bb5 {[%clk 0:01:46]}  Nc6 {[%clk 0:02:01]} 17. Qb3 {[%clk 0:01:32]}  O-O {[%clk 0:01:56]} 18. Qe3 {[%clk 0:01:05]}  Na5 {[%clk 0:01:51]} 19. Bd3 {[%clk 0:00:57]}  Nb3 {[%clk 0:01:45]} 20. Rb1 {[%clk 0:00:56]} *


[Site "https://www.chess.com"]

[Event "Titled Tuesday Blitz April 05 Early 2022"]
[White "Dilmukhametov, Artur"]
[Black "Piliczewski, Bogusz"]
[WhiteFideId "24179922"]
[BlackFideId "1104144"]
[WhiteElo "2244"]
[BlackElo "1896"]
[Result "0-1"]
[Round "03"]
[TimeControl "180+1"]
[Date "2022.04.05"]
[WhiteClock "0:00:01"]
[BlackClock "0:00:37"]

1. d4 {[%clk 0:01:57]}  d5 {[%clk 0:02:58]} 2. Nc3 {[%clk 0:01:57]}  Nf6 {[%clk 0:02:57]} 3. Bf4 {[%clk 0:01:57]}  Bf5 {[%clk 0:02:55]} 4. e3 {[%clk 0:01:57]}  e6 {[%clk 0:02:53]} 5. f3 {[%clk 0:01:58]}  Be7 {[%clk 0:02:50]} 6. g4 {[%clk 0:01:57]}  Bg6 {[%clk 0:02:36]} 7. h4 {[%clk 0:01:56]}  h5 {[%clk 0:02:35]} 8. g5 {[%clk 0:01:55]}  Nfd7 {[%clk 0:02:35]} 9. Bd3 {[%clk 0:01:55]}  Bxd3 {[%clk 0:02:33]} 10. Qxd3 {[%clk 0:01:55]}  g6 {[%clk 0:02:34]} 11. Nge2 {[%clk 0:01:53]}  c5 {[%clk 0:02:32]} 12. O-O-O {[%clk 0:01:52]}  Nc6 {[%clk 0:02:32]} 13. Nb5 {[%clk 0:01:50]}  O-O {[%clk 0:02:24]} 14. Nec3 {[%clk 0:01:32]}  a6 {[%clk 0:02:22]} 15. Nd6 {[%clk 0:01:27]}  Ra7 {[%clk 0:02:05]} 16. e4 {[%clk 0:01:20]}  Nb6 {[%clk 0:01:42]} 17. e5 {[%clk 0:01:18]}  Nxd4 {[%clk 0:01:41]} 18. Bg3 {[%clk 0:01:08]}  Bxd6 {[%clk 0:01:27]} 19. exd6 {[%clk 0:01:07]}  Nc4 {[%clk 0:01:23]} 20. Rdf1 {[%clk 0:00:57]}  Nxd6 {[%clk 0:01:21]} 21. f4 {[%clk 0:00:55]}  N6f5 {[%clk 0:01:19]} 22. Bh2 {[%clk 0:00:51]}  b5 {[%clk 0:01:17]} 23. b3 {[%clk 0:00:50]}  c4 {[%clk 0:01:15]} 24. bxc4 {[%clk 0:00:47]}  bxc4 {[%clk 0:01:15]} 25. Qd2 {[%clk 0:00:44]}  Qa5 {[%clk 0:01:08]} 26. Kd1 {[%clk 0:00:39]}  Rb7 {[%clk 0:01:03]} 27. Bg1 {[%clk 0:00:36]}  Nc6 {[%clk 0:00:56]} 28. Re1 {[%clk 0:00:22]}  Rd8 {[%clk 0:00:55]} 29. Re2 {[%clk 0:00:17]}  d4 {[%clk 0:00:52]} 30. Bxd4 {[%clk 0:00:12]}  Rxd4 {[%clk 0:00:51]} 31. Ne4 {[%clk 0:00:12]}  Rxd2+ {[%clk 0:00:50]} 32. Nxd2 {[%clk 0:00:12]}  Rd7 {[%clk 0:00:48]} 33. Ke1 {[%clk 0:00:11]}  Qxa2 {[%clk 0:00:47]} 34. Nxc4 {[%clk 0:00:09]}  Qxc4 {[%clk 0:00:46]} 35. Kf2 {[%clk 0:00:08]}  Qc5+ {[%clk 0:00:45]} 36. Kf1 {[%clk 0:00:08]}  Qc4 {[%clk 0:00:45]} 37. Rh2 {[%clk 0:00:07]}  Qxf4+ {[%clk 0:00:45]} 38. Ke1 {[%clk 0:00:06]}  Qg3+ {[%clk 0:00:43]} 39. Ref2 {[%clk 0:00:05]}  Nfd4 {[%clk 0:00:41]} 40. Kf1 {[%clk 0:00:02]}  Nf3 {[%clk 0:00:40]} 41. Rhg2 {[%clk 0:00:01]}  Rd1+ {[%clk 0:00:38]} 42. Ke2 {[%clk 0:00:01]}  Rd2+ {[%clk 0:00:38]} 43. Ke3 {[%clk 0:00:01]}  Qxg2 {[%clk 0:00:37]} 0-1


[Site "https://www.chess.com"]

[Event "Titled Tuesday Blitz April 05 Early 2022"]
[White "Estrada Nieto, Julian"]
[Black "Rottenwohrer Suarez, Juan"]
[WhiteFideId "5101018"]
[BlackFideId "32068182"]
[WhiteElo "2252"]
[BlackElo "2158"]
[Result "0-1"]
[Round "03"]
[TimeControl "180+1"]
[Date "2022.04.05"]
[WhiteClock "0:00:12"]
[BlackClock "0:00:02"]

1. e4 {[%clk 0:03:00]}  c5 {[%clk 0:02:58]} 2. Nf3 {[%clk 0:03:00]}  d6 {[%clk 0:02:58]} 3. Bb5+ {[%clk 0:02:58]}  Bd7 {[%clk 0:02:29]} 4. Bxd7+ {[%clk 0:02:57]}  Nxd7 {[%clk 0:02:24]} 5. O-O {[%clk 0:02:58]}  Ngf6 {[%clk 0:02:18]} 6. Re1 {[%clk 0:02:58]}  e6 {[%clk 0:02:13]} 7. c3 {[%clk 0:02:58]}  Be7 {[%clk 0:02:08]} 8. d4 {[%clk 0:02:57]}  O-O {[%clk 0:02:01]} 9. Bg5 {[%clk 0:02:51]}  h6 {[%clk 0:01:49]} 10. Bh4 {[%clk 0:02:50]}  e5 {[%clk 0:01:39]} 11. dxe5 {[%clk 0:02:49]}  Nxe5 {[%clk 0:01:33]} 12. Nxe5 {[%clk 0:02:48]}  dxe5 {[%clk 0:01:34]} 13. Bxf6 {[%clk 0:02:47]}  Bxf6 {[%clk 0:01:32]} 14. Nd2 {[%clk 0:02:47]}  b5 {[%clk 0:01:22]} 15. a4 {[%clk 0:02:44]}  a6 {[%clk 0:01:21]} 16. Qe2 {[%clk 0:02:43]}  Qb6 {[%clk 0:01:20]} 17. Nf1 {[%clk 0:02:42]}  Bg5 {[%clk 0:01:18]} 18. g3 {[%clk 0:02:41]}  c4 {[%clk 0:01:06]} 19. h4 {[%clk 0:02:41]}  Be7 {[%clk 0:01:06]} 20. Ne3 {[%clk 0:02:41]}  Bc5 {[%clk 0:01:07]} 21. Nd5 {[%clk 0:02:36]}  Qb7 {[%clk 0:01:07]} 22. Qh5 {[%clk 0:02:21]}  f6 {[%clk 0:00:57]} 23. Qe2 {[%clk 0:02:14]}  Rad8 {[%clk 0:00:57]} 24. axb5 {[%clk 0:02:13]}  axb5 {[%clk 0:00:57]} 25. Red1 {[%clk 0:02:08]}  f5 {[%clk 0:00:58]} 26. Rd2 {[%clk 0:01:58]}  g6 {[%clk 0:00:55]} 27. Rad1 {[%clk 0:01:51]}  Kg7 {[%clk 0:00:55]} 28. Kg2 {[%clk 0:01:42]}  f4 {[%clk 0:00:36]} 29. gxf4 {[%clk 0:01:36]}  exf4 {[%clk 0:00:37]} 30. Qf3 {[%clk 0:01:25]}  Qf7 {[%clk 0:00:37]} 31. Rh1 {[%clk 0:01:10]}  g5 {[%clk 0:00:33]} 32. hxg5 {[%clk 0:00:59]}  hxg5 {[%clk 0:00:34]} 33. Rh5 {[%clk 0:00:39]}  Qg6 {[%clk 0:00:18]} 34. Qg4 {[%clk 0:00:30]}  Qxe4+ {[%clk 0:00:17]} 35. f3 {[%clk 0:00:30]}  Qg6 {[%clk 0:00:02]} 36. Rxg5 {[%clk 0:00:30]}  Rd6 {[%clk 0:00:03]} 37. Kf1 {[%clk 0:00:24]}  Rh8 {[%clk 0:00:03]} 38. Rxg6+ {[%clk 0:00:20]}  Rxg6 {[%clk 0:00:04]} 39. Qd7+ {[%clk 0:00:20]}  Kg8 {[%clk 0:00:04]} 40. Qe8+ {[%clk 0:00:19]}  Kg7 {[%clk 0:00:04]} 41. Qd7+ {[%clk 0:00:17]}  Kg8 {[%clk 0:00:04]} 42. Nxf4 {[%clk 0:00:14]}  Rg1+ {[%clk 0:00:02]} 43. Ke2 {[%clk 0:00:14]}  Rh2+ {[%clk 0:00:02]} 44. Ng2 {[%clk 0:00:12]}  Rhxg2# {[%clk 0:00:02]} 0-1


[Site "https://www.chess.com"]

[Event "Titled Tuesday Blitz April 05 Early 2022"]
[White "Fedoseev, Vladimir"]
[Black "Domingo Nunez, Alejandro"]
[WhiteFideId "24130737"]
[BlackFideId "22245561"]
[WhiteElo "2726"]
[BlackElo "2215"]
[Result "*"]
[Round "03"]
[TimeControl "180+1"]
[Date "2022.04.05"]
[WhiteClock "0:01:44"]
[BlackClock "0:01:06"]

1. e4 {[%clk 0:02:59]}  c6 {[%clk 0:02:57]} 2. d4 {[%clk 0:02:58]}  d5 {[%clk 0:02:58]} 3. Nd2 {[%clk 0:02:59]}  dxe4 {[%clk 0:02:58]} 4. Nxe4 {[%clk 0:02:59]}  Nf6 {[%clk 0:02:59]} 5. Ng3 {[%clk 0:02:57]}  h5 {[%clk 0:02:58]} 6. h4 {[%clk 0:02:55]}  c5 {[%clk 0:02:59]} 7. Nf3 {[%clk 0:02:53]}  Bg4 {[%clk 0:02:58]} 8. Be3 {[%clk 0:02:39]}  cxd4 {[%clk 0:02:48]} 9. Qxd4 {[%clk 0:02:35]}  Nc6 {[%clk 0:02:45]} 10. Qxd8+ {[%clk 0:02:35]}  Rxd8 {[%clk 0:02:46]} 11. Ng5 {[%clk 0:02:32]}  Nb4 {[%clk 0:02:24]} 12. Bb5+ {[%clk 0:02:30]}  Bd7 {[%clk 0:02:24]} 13. Bxd7+ {[%clk 0:02:25]}  Rxd7 {[%clk 0:02:24]} 14. Ke2 {[%clk 0:02:23]}  e6 {[%clk 0:01:48]} 15. c4 {[%clk 0:02:01]}  Nc2 {[%clk 0:01:38]} 16. Rad1 {[%clk 0:01:58]}  Nxe3 {[%clk 0:01:34]} 17. fxe3 {[%clk 0:01:58]}  Be7 {[%clk 0:01:28]} 18. Rxd7 {[%clk 0:01:48]}  Nxd7 {[%clk 0:01:28]} 19. N3e4 {[%clk 0:01:47]}  Ne5 {[%clk 0:01:06]} 20. c5 {[%clk 0:01:44]} *


[Site "https://www.chess.com"]

[Event "Titled Tuesday Blitz April 05 Early 2022"]
[White "Garriga Cazorla, Pere"]
[Black "Terry, Renato"]
[WhiteFideId "32011601"]
[BlackFideId "3803457"]
[WhiteElo "2458"]
[BlackElo "2577"]
[Result "*"]
[Round "03"]
[TimeControl "180+1"]
[Date "2022.04.05"]
[WhiteClock "0:01:59"]
[BlackClock "0:01:20"]

1. d4 {[%clk 0:02:57]}  e6 {[%clk 0:03:00]} 2. c4 {[%clk 0:02:57]}  Bb4+ {[%clk 0:02:59]} 3. Bd2 {[%clk 0:02:57]}  Qe7 {[%clk 0:02:59]} 4. g3 {[%clk 0:02:57]}  Nf6 {[%clk 0:02:59]} 5. Bg2 {[%clk 0:02:57]}  O-O {[%clk 0:03:00]} 6. Nf3 {[%clk 0:02:58]}  Bxd2+ {[%clk 0:03:00]} 7. Qxd2 {[%clk 0:02:57]}  d6 {[%clk 0:03:01]} 8. O-O {[%clk 0:02:57]}  e5 {[%clk 0:03:02]} 9. Nc3 {[%clk 0:02:57]}  Re8 {[%clk 0:02:59]} 10. e4 {[%clk 0:02:56]}  Bg4 {[%clk 0:02:57]} 11. d5 {[%clk 0:02:56]}  a5 {[%clk 0:02:54]} 12. Ne1 {[%clk 0:02:56]}  Na6 {[%clk 0:02:49]} 13. f3 {[%clk 0:02:55]}  Bd7 {[%clk 0:02:47]} 14. Nd3 {[%clk 0:02:55]}  b6 {[%clk 0:02:45]} 15. Rae1 {[%clk 0:02:41]}  c6 {[%clk 0:02:41]} 16. f4 {[%clk 0:02:38]}  Nc5 {[%clk 0:02:39]} 17. h3 {[%clk 0:02:29]}  Nxd3 {[%clk 0:02:20]} 18. Qxd3 {[%clk 0:02:28]}  c5 {[%clk 0:02:20]} 19. a4 {[%clk 0:02:23]}  h6 {[%clk 0:01:53]} 20. b3 {[%clk 0:02:21]}  Nh7 {[%clk 0:01:50]} 21. Rf2 {[%clk 0:02:19]}  Rf8 {[%clk 0:01:50]} 22. Re3 {[%clk 0:02:13]}  f6 {[%clk 0:01:40]} 23. Kf1 {[%clk 0:02:13]}  Kf7 {[%clk 0:01:40]} 24. Ke1 {[%clk 0:02:13]}  Ke8 {[%clk 0:01:40]} 25. Kd2 {[%clk 0:02:12]}  Kd8 {[%clk 0:01:41]} 26. Kc2 {[%clk 0:02:11]}  Kc7 {[%clk 0:01:41]} 27. Kb2 {[%clk 0:02:12]}  Rae8 {[%clk 0:01:41]} 28. Qf1 {[%clk 0:02:11]}  g6 {[%clk 0:01:40]} 29. h4 {[%clk 0:02:08]}  g5 {[%clk 0:01:31]} 30. Bh3 {[%clk 0:02:02]}  g4 {[%clk 0:01:30]} 31. Bg2 {[%clk 0:02:02]}  h5 {[%clk 0:01:29]} 32. Qd3 {[%clk 0:01:59]}  Rf7 {[%clk 0:01:23]} 33. Re1 {[%clk 0:01:59]}  Nf8 {[%clk 0:01:20]} *


[Site "https://www.chess.com"]

[Event "Titled Tuesday Blitz April 05 Early 2022"]
[White "Girinath, P.D.S."]
[Black "Lakshmi C"]
[WhiteFideId "5000572"]
[BlackFideId "25035347"]
[WhiteElo "2369"]
[BlackElo "1775"]
[Result "1-0"]
[Round "03"]
[TimeControl "180+1"]
[Date "2022.04.05"]
[WhiteClock "0:00:17"]
[BlackClock "0:00:01"]

1. e4 {[%clk 0:03:00]}  e5 {[%clk 0:02:57]} 2. Nf3 {[%clk 0:03:00]}  Nc6 {[%clk 0:02:57]} 3. Bb5 {[%clk 0:03:00]}  a6 {[%clk 0:02:56]} 4. Ba4 {[%clk 0:03:00]}  d6 {[%clk 0:02:57]} 5. O-O {[%clk 0:02:58]}  Bd7 {[%clk 0:02:52]} 6. c3 {[%clk 0:02:58]}  Nf6 {[%clk 0:02:50]} 7. Re1 {[%clk 0:02:58]}  Be7 {[%clk 0:02:50]} 8. d4 {[%clk 0:02:57]}  b5 {[%clk 0:02:46]} 9. Bb3 {[%clk 0:02:56]}  O-O {[%clk 0:02:42]} 10. h3 {[%clk 0:02:55]}  h6 {[%clk 0:02:38]} 11. Nbd2 {[%clk 0:02:50]}  Nh7 {[%clk 0:02:34]} 12. Nf1 {[%clk 0:02:37]}  Ng5 {[%clk 0:02:29]} 13. N3h2 {[%clk 0:02:25]}  Na5 {[%clk 0:02:07]} 14. Bc2 {[%clk 0:02:20]}  c5 {[%clk 0:01:31]} 15. d5 {[%clk 0:02:11]}  c4 {[%clk 0:01:24]} 16. Ng3 {[%clk 0:02:08]}  g6 {[%clk 0:01:22]} 17. h4 {[%clk 0:02:05]}  Nh7 {[%clk 0:01:19]} 18. Bxh6 {[%clk 0:02:05]}  Bxh4 {[%clk 0:01:19]} 19. Bxf8 {[%clk 0:02:04]}  Qxf8 {[%clk 0:01:12]} 20. Ng4 {[%clk 0:01:41]}  f5 {[%clk 0:00:40]} 21. exf5 {[%clk 0:01:40]}  gxf5 {[%clk 0:00:40]} 22. Nxf5 {[%clk 0:01:34]}  Bg5 {[%clk 0:00:30]} 23. Nge3 {[%clk 0:01:26]}  Nb7 {[%clk 0:00:25]} 24. Qh5 {[%clk 0:01:20]}  Nc5 {[%clk 0:00:19]} 25. Nxd6 {[%clk 0:01:15]}  Nd3 {[%clk 0:00:16]} 26. Ne4 {[%clk 0:01:07]}  Nf4 {[%clk 0:00:10]} 27. Qh2 {[%clk 0:01:01]}  Bh6 {[%clk 0:00:08]} 28. Rad1 {[%clk 0:00:48]}  Re8 {[%clk 0:00:06]} 29. g3 {[%clk 0:00:47]}  Nh3+ {[%clk 0:00:06]} 30. Kf1 {[%clk 0:00:45]}  Re7 {[%clk 0:00:05]} 31. Ke2 {[%clk 0:00:36]}  Rf7 {[%clk 0:00:04]} 32. Rf1 {[%clk 0:00:36]}  Bxe3 {[%clk 0:00:04]} 33. Kxe3 {[%clk 0:00:36]}  Bg4 {[%clk 0:00:04]} 34. Kd2 {[%clk 0:00:21]}  Rf3 {[%clk 0:00:01]} 35. Kc1 {[%clk 0:00:17]} 1-0


[Site "https://www.chess.com"]

[Event "Titled Tuesday Blitz April 05 Early 2022"]
[White "Golubeva, Oksana"]
[Black "Leiva, Gianmarco"]
[WhiteFideId "4170164"]
[BlackFideId "3804399"]
[WhiteElo "2162"]
[BlackElo "2323"]
[Result "0-1"]
[Round "03"]
[TimeControl "180+1"]
[Date "2022.04.05"]
[WhiteClock "0:01:45"]
[BlackClock "0:01:47"]

1. Nf3 {[%clk 0:02:59]}  Nf6 {[%clk 0:03:00]} 2. e3 {[%clk 0:02:59]}  d5 {[%clk 0:03:00]} 3. c4 {[%clk 0:02:59]}  c5 {[%clk 0:02:58]} 4. d4 {[%clk 0:02:58]}  cxd4 {[%clk 0:02:57]} 5. exd4 {[%clk 0:02:58]}  g6 {[%clk 0:02:58]} 6. Nc3 {[%clk 0:02:56]}  Bg7 {[%clk 0:02:59]} 7. h3 {[%clk 0:02:57]}  O-O {[%clk 0:02:59]} 8. Bg5 {[%clk 0:02:55]}  Ne4 {[%clk 0:02:59]} 9. Be3 {[%clk 0:02:43]}  Qa5 {[%clk 0:02:55]} 10. Qb3 {[%clk 0:02:40]}  dxc4 {[%clk 0:02:40]} 11. Bxc4 {[%clk 0:02:41]}  Nd6 {[%clk 0:02:40]} 12. Bd3 {[%clk 0:02:27]}  Nc6 {[%clk 0:02:37]} 13. O-O {[%clk 0:02:25]}  Nb4 {[%clk 0:02:34]} 14. Be2 {[%clk 0:02:10]}  Bf5 {[%clk 0:02:34]} 15. Rfc1 {[%clk 0:02:00]}  Be6 {[%clk 0:01:48]} 16. Na4 {[%clk 0:01:45]}  Bxb3 {[%clk 0:01:47]} 0-1


[Site "https://www.chess.com"]

[Event "Titled Tuesday Blitz April 05 Early 2022"]
[White "Hansen, Eric"]
[Black "Rastbod, Ali"]
[WhiteFideId "2606771"]
[BlackFideId "12567477"]
[WhiteElo "2568"]
[BlackElo "2147"]
[Result "*"]
[Round "03"]
[TimeControl "180+1"]
[Date "2022.04.05"]
[WhiteClock "0:01:57"]
[BlackClock "0:01:45"]

1. e4 {[%clk 0:02:59]}  e6 {[%clk 0:03:00]} 2. d4 {[%clk 0:02:54]}  d5 {[%clk 0:02:59]} 3. Nc3 {[%clk 0:02:54]}  Bb4 {[%clk 0:02:58]} 4. e5 {[%clk 0:02:44]}  b6 {[%clk 0:02:58]} 5. a3 {[%clk 0:02:42]}  Bf8 {[%clk 0:02:57]} 6. Bb5+ {[%clk 0:02:42]}  c6 {[%clk 0:02:53]} 7. Ba4 {[%clk 0:02:41]}  Ne7 {[%clk 0:02:50]} 8. Nce2 {[%clk 0:02:40]}  Ba6 {[%clk 0:02:45]} 9. c3 {[%clk 0:02:38]}  Bb5 {[%clk 0:02:44]} 10. Bc2 {[%clk 0:02:38]}  c5 {[%clk 0:02:44]} 11. Nf3 {[%clk 0:02:37]}  Nbc6 {[%clk 0:02:44]} 12. O-O {[%clk 0:02:37]}  Rc8 {[%clk 0:02:43]} 13. Re1 {[%clk 0:02:36]}  Ng6 {[%clk 0:02:30]} 14. g3 {[%clk 0:02:33]}  Be7 {[%clk 0:02:24]} 15. h4 {[%clk 0:02:22]}  O-O {[%clk 0:02:22]} 16. h5 {[%clk 0:02:21]}  Nh8 {[%clk 0:02:22]} 17. Nf4 {[%clk 0:02:21]}  cxd4 {[%clk 0:02:10]} 18. cxd4 {[%clk 0:02:19]}  Qc7 {[%clk 0:02:05]} 19. Be3 {[%clk 0:01:56]}  Nxe5 {[%clk 0:01:45]} 20. dxe5 {[%clk 0:01:56]}  Qxc2 {[%clk 0:01:44]} 21. Qxc2 {[%clk 0:01:56]}  Rxc2 {[%clk 0:01:45]} 22. Nd4 {[%clk 0:01:57]} *


[Site "https://www.chess.com"]